bitfinex-derivatives/quotes_SOLF0:USTF0_20250113
["timestamp","ask_amount","ask_price","bid_price","bid_amount"]
[1736802087156,34.05539981,181.77,181.62,6.78]
[1736802087451,2.7526,181.72,181.62,40.83539981]
[1736802087756,34.05539981,181.77,181.62,6.78]
[1736802087944,2.7527,181.71,181.62,6.78]
[1736802088148,34.05539981,181.74,181.58,1.5529]
[1736802088348,34.05539981,181.71,181.62,6.78]
[1736802088546,34.05539981,181.71,181.58,1.5529]
[1736802088749,34.05539981,181.68,181.59,9.5344]
[1736802089150,34.05539981,181.68,181.59,6.78]
[1736802089351,34.05539981,181.68,181.58,1.5529]
[1736802089555,34.05539981,181.68,181.58,8.3329]
[1736802090356,2.7536,181.65,181.6,2.7542]
[1736802090555,34.05539981,181.68,181.6,2.7542]
[1736802090757,34.05539981,181.68,181.58,8.3329]
[1736802091446,2.7535,181.65,181.6,2.7542]
[1736802091659,34.05539981,181.68,181.6,2.7542]
[1736802092051,34.05539981,181.68,181.58,11.0873]
[1736802092351,34.05539981,181.68,181.58,8.3329]
[1736802092553,2.7526,181.71,181.62,2.7539]
[1736802092757,2.7526,181.71,181.62,34.05539981]
[1736802093058,2.7525,181.72,181.62,34.05539981]
[1736802093251,34.05539981,181.77,181.62,34.05539981]
[1736802093452,34.05539981,181.74,181.59,34.05539981]
[1736802093652,34.05539981,181.74,181.63,2.7537]
[1736802094256,34.05539981,181.71,181.61,2.7541]
[1736802094457,4.8502,181.7,181.61,2.7541]
[1736802094757,34.05539981,181.65,181.56,2.7547]
[1736802094957,34.05539981,181.65,181.55,6.76]
[1736802095365,2.754,181.62,181.58,2.7546]
[1736802095554,34.05539981,181.68,181.55,6.76]
[1736802095958,2.7538,181.64,181.55,6.76]
[1736802096153,34.05539981,181.68,181.55,6.76]
[1736802096657,2.7538,181.64,181.6,2.7542]
[1736802097058,2.7538,181.63,181.59,2.7544]
[1736802097358,34.05539981,181.65,181.51,3.3665]
[1736802097558,2.7544,181.6,181.55,2.7549]
[1736802097753,34.05539981,181.65,181.52,6.76]
[1736802098359,34.05539981,181.62,181.52,6.76]
[1736802098556,2.7545,181.59,181.53,2.7552]
[1736802098857,1.6289,181.61,181.52,6.76]
[1736802099655,1.6289,181.61,181.53,2.7553]
[1736802099849,1.6741,181.6,181.53,2.7553]
[1736802100054,1.6741,181.6,181.51,6.74]
[1736802100256,34.05539981,181.65,181.57,2.7547]
[1736802100456,1.6578,181.64,181.57,2.7547]
[1736802100860,2.7542,181.61,181.57,2.7547]
[1736802101159,1.6578,181.64,181.57,2.7547]
[1736802101457,1.6578,181.64,181.51,6.74]
[1736802102157,2.7545,181.59,181.55,2.7549]
[1736802102357,2.7545,181.59,181.51,6.74]
[1736802102956,2.7547,181.57,181.51,6.74]
[1736802103458,7.18,181.93,181.55,34.05539981]
[1736802103660,152.71031359,181.73,181.62,34.05539981]
[1736802103857,152.71031359,181.73,181.65,34.05539981]
[1736802104060,152.71031359,181.73,181.66,94.52]
[1736802104262,152.71031359,181.73,181.66,96.1518]
[1736802104461,152.71031359,181.73,181.68,34.05539981]
[1736802104966,152.71031359,181.73,181.72,2.7524]
[1736802105166,272.98632833,181.78,181.72,2.7524]
[1736802105167,1.5617,181.78,181.72,7.38]
[1736802105359,1.5617,181.78,181.74,2.752]
[1736802105564,1.5617,181.78,181.68,7.52]
[1736802105864,34.05539981,181.76,181.68,7.52]
[1736802106067,152.71031359,181.88,181.68,7.52]
[1736802106068,5.4996,181.9,181.68,7.52]
[1736802106268,0.93685872,181.89,181.76,34.05539981]
[1736802106560,2.7504,181.86,181.8,2.7512]
[1736802106767,1.6118,181.88,181.77,7.54]
[1736802106961,2.7503,181.86,181.8,2.7512]
[1736802107362,152.71031359,181.95,181.85,34.05539981]
[1736802107564,152.71031359,181.95,181.9,2.7497]
[1736802107764,152.71031359,181.99,181.88,34.05539981]
[1736802107964,20.74,181.95,181.88,34.05539981]
[1736802108167,20.74,181.95,181.89,2.7498]
[1736802108668,20.74,181.95,181.9,2.7497]
[1736802108872,20.74,181.95,181.91,34.05539981]
[1736802109362,20.74,181.95,181.93,2.7492]
[1736802109963,20.74,181.95,181.91,34.05539981]
[1736802111164,20.74,181.95,181.93,2.7493]
[1736802112268,20.74,181.95,181.91,34.05539981]
[1736802113671,20.74,181.95,181.92,8.12]
[1736802115166,20.74,181.95,181.91,34.05539981]
[1736802115366,20.74,181.95,181.91,8.08]
[1736802115562,20.74,181.95,181.91,10.8294]
[1736802116170,20.74,181.95,181.91,8.08]
[1736802116373,20.74,181.95,181.85,34.05539981]
[1736802116664,20.74,181.95,181.86,8.08]
[1736802118264,2.7493,181.93,181.87,2.7502]
[1736802118463,20.74,181.95,181.87,2.7502]
[1736802120275,34.05539981,181.94,181.84,8.02]
[1736802120677,20.74,181.95,181.84,8.02]
[1736802120973,20.74,181.95,181.88,34.05539981]
[1736802121381,20.74,181.95,181.91,34.05539981]
[1736802121779,20.74,181.95,181.93,2.7492]
[1736802121978,20.74,181.95,181.94,8.0]
[1736802122376,20.74,181.95,181.94,10.7491]
[1736802122578,34.05539981,182.13,181.94,42.05539981]
[1736802122778,4.9883,182.12,181.97,34.05539981]
[1736802123380,4.9883,182.12,182.0,34.05539981]
[1736802123582,4.9883,182.12,182.03,34.05539981]
[1736802123881,2.7466,182.11,182.05,2.7474]
[1736802124083,4.9883,182.12,182.04,8.04]
[1736802124475,34.05539981,182.1,181.98,102.4]
[1736802124684,2.7477,182.04,181.98,102.4]
[1736802124877,34.05539981,182.1,181.98,102.4]
[1736802126385,2.7479,182.03,181.98,102.4]
[1736802127383,2.7479,182.02,181.98,102.4]
[1736802127584,34.05539981,182.1,181.98,102.4]
[1736802127891,34.05539981,182.07,181.98,94.36]
[1736802128083,2.7483,182.0,181.98,94.36]
[1736802128687,34.05539981,182.1,181.98,94.36]
[1736802128897,4.9883,182.12,181.98,94.36]
[1736802129189,2.7469,182.09,182.0,34.05539981]
[1736802129387,4.9883,182.12,182.0,34.05539981]
[1736802130683,4.9883,182.12,181.98,94.36]
[1736802131486,4.9883,182.12,182.0,34.05539981]
[1736802131684,34.05539981,182.19,182.04,34.05539981]
[1736802131882,1.5545,182.18,182.07,2.7471]
[1736802132078,1.5545,182.18,182.05,7.98]
[1736802132284,34.05539981,182.16,182.05,7.98]
[1736802132485,2.747,182.09,182.05,7.98]
[1736802132688,34.05539981,182.16,182.05,7.98]
[1736802132891,34.05539981,182.13,182.05,7.98]
[1736802133092,2.7472,182.07,182.05,7.98]
[1736802133285,1.6713,182.12,182.05,7.98]
[1736802134289,1.6713,182.12,182.0,7.94]
[1736802134790,2.7469,182.09,182.03,2.7477]
[1736802134995,1.6713,182.12,182.01,34.05539981]
[1736802135384,2.7467,182.11,182.06,2.7472]
[1736802135783,1.6713,182.12,182.01,34.05539981]
[1736802136592,2.7466,182.11,182.04,2.7476]
[1736802136789,2.7466,182.11,182.01,34.05539981]
[1736802136790,1.6713,182.12,182.01,34.05539981]
[1736802137187,2.7468,182.1,182.05,2.7473]
[1736802137394,1.5545,182.18,182.04,34.05539981]
[1736802137592,3.2003,182.18,182.04,34.05539981]
[1736802138194,3.2003,182.18,182.02,1.5634]
[1736802138401,34.05539981,182.16,182.01,34.05539981]
[1736802138595,34.05539981,182.16,182.0,9.6495]
[1736802138790,34.05539981,182.13,182.0,7.94]
[1736802138999,34.05539981,182.13,181.99,7.92]
[1736802139193,34.05539981,182.07,181.93,3.3913]
[1736802139401,2.7487,181.97,181.96,7.92]
[1736802139897,34.05539981,182.01,181.92,94.3]
[1736802140101,2.7493,181.93,181.92,94.3]
[1736802140301,34.05539981,182.01,181.92,94.3]
[1736802141705,2.7488,181.97,181.92,94.3]
[1736802142004,4.761,182.06,181.92,128.35539981]
[1736802142298,4.761,182.06,181.95,34.05539981]
[1736802142709,1.5754,182.06,181.98,34.05539981]
[1736802142908,1.5754,182.06,181.99,7.92]
[1736802143112,3.3641,182.12,181.99,7.92]
[1736802143311,1.681,182.11,181.99,7.92]
[1736802143610,1.681,182.11,182.0,2.7481]
[1736802144105,1.681,182.11,182.02,2.7478]
[1736802144310,1.681,182.11,181.99,7.92]
[1736802144706,2.7469,182.09,181.99,7.92]
[1736802144900,1.681,182.11,181.99,7.92]
[1736802145410,1.681,182.11,181.99,9.6257]
[1736802145812,1.681,182.11,181.99,7.92]
[1736802146012,34.05539981,182.1,181.99,7.92]
[1736802146206,2.7475,182.05,182.0,2.7482]
[1736802147010,2.7472,182.07,182.0,2.7482]
[1736802147210,34.05539981,182.1,182.0,2.7482]
[1736802147607,2.7472,182.07,182.0,2.7482]
[1736802147811,34.05539981,182.1,182.0,2.7482]
[1736802148008,1.681,182.11,182.02,2.7479]
[1736802148212,2.7469,182.09,181.99,7.92]
[1736802148415,1.681,182.11,181.99,7.92]
[1736802148708,2.7473,182.07,181.99,7.92]
[1736802149112,1.681,182.11,182.02,2.7478]
[1736802149309,2.7472,182.07,182.02,2.7478]
[1736802149608,1.681,182.11,182.0,2.7481]
[1736802149915,2.7478,182.03,181.95,34.05539981]
[1736802150211,34.05539981,182.04,181.93,7.82]
[1736802150406,34.05539981,182.07,181.93,7.82]
[1736802150604,2.7483,182.0,181.93,7.82]
[1736802150804,34.05539981,182.07,181.94,2.7491]
[1736802151013,34.05539981,182.07,181.93,7.82]
[1736802151410,34.05539981,182.07,181.97,2.7486]
[1736802152008,34.05539981,182.04,181.9,94.3]
[1736802152317,34.05539981,182.01,181.9,94.3]
[1736802152514,2.7496,181.91,181.9,94.3]
[1736802153218,34.05539981,181.95,181.84,7.78]
[1736802153422,1.6477,181.94,181.84,7.78]
[1736802154421,34.05539981,181.92,181.84,7.78]
[1736802155119,1.6477,181.94,181.79,102.06]
[1736802155120,34.05539981,181.89,181.79,102.06]
[1736802155319,1.6671,181.88,181.79,102.06]
[1736802155516,3.2416,181.88,181.79,102.06]
[1736802155911,1.6671,181.88,181.79,102.06]
[1736802156815,1.6671,181.88,181.79,94.3]
[1736802157015,34.05539981,181.86,181.72,191.0]
[1736802157221,34.05539981,181.83,181.71,7.74]
[1736802157413,34.05539981,181.8,181.69,7.72]
[1736802157618,1.6026,181.79,181.69,7.72]
[1736802158124,1.5552,181.82,181.69,7.72]
[1736802158514,34.05539981,181.8,181.69,7.72]
[1736802158922,2.7519,181.76,181.69,10.4728]
[1736802159122,34.05539981,181.8,181.69,10.4728]
[1736802159424,2.7517,181.78,181.71,2.7525]
[1736802159617,34.05539981,181.8,181.69,7.72]
[1736802159818,34.05539981,181.77,181.69,7.72]
[1736802160019,1.5876,181.76,181.69,7.72]
[1736802161021,1.5876,181.76,181.69,10.4728]
[1736802161022,4.3395,181.76,181.69,10.4728]
[1736802161222,4.3395,181.76,181.68,94.34]
[1736802161418,1.5552,181.82,181.76,2.7518]
[1736802161724,1.5876,181.86,181.77,7.66]
[1736802161924,4.338,181.86,181.8,2.7512]
[1736802162125,1.6026,181.87,181.77,41.71539981]
[1736802162327,34.05539981,181.92,181.77,41.71539981]
[1736802162526,2.7502,181.88,181.83,2.7507]
[1736802162728,37.28669981,181.95,181.8,34.05539981]
[1736802163424,3.2313,181.95,181.83,34.05539981]
[1736802163823,2.7496,181.92,181.84,2.7505]
[1736802164018,2.7496,181.92,181.85,7.64]
[1736802164221,3.2313,181.95,181.85,7.64]
[1736802164421,2.7493,181.93,181.87,2.7502]
[1736802164627,3.2313,181.95,181.85,7.64]
[1736802164919,1.6741,181.95,181.87,2.7502]
[1736802165118,34.05539981,182.01,181.86,34.05539981]
[1736802165328,34.05539981,182.04,181.89,34.05539981]
[1736802165531,3.2374,182.05,181.89,34.05539981]
[1736802167124,34.05539981,182.04,181.89,34.05539981]
[1736802167331,3.2374,182.05,181.89,34.05539981]
[1736802167532,3.2374,182.05,181.9,7.6]
[1736802167730,2.7484,182.0,181.93,2.7493]
[1736802168030,34.05539981,182.04,181.9,7.6]
[1736802168228,2.7487,181.98,181.91,2.7495]
[1736802168432,34.05539981,182.04,181.86,35.62189981]
[1736802168631,34.05539981,182.01,181.91,7.6]
[1736802168926,34.05539981,182.01,181.86,1.5665]
[1736802169131,34.05539981,182.01,181.87,7.58]
[1736802169424,2.7491,181.95,181.87,7.58]
[1736802169626,34.05539981,182.04,181.87,41.63539981]
[1736802169834,34.05539981,182.04,181.9,34.05539981]
[1736802170529,34.05539981,182.04,181.87,41.63539981]
[1736802171234,34.05539981,182.01,181.87,41.63539981]
[1736802171428,34.05539981,182.01,181.87,7.58]
[1736802171831,2.7482,182.0,181.94,2.7491]
[1736802172230,2.7482,182.0,181.95,7.56]
[1736802172431,34.05539981,182.04,181.95,7.56]
[1736802172632,2.7482,182.01,181.96,2.7488]
[1736802172836,34.05539981,182.04,181.95,7.56]
[1736802173239,2.7488,181.97,181.95,7.56]
[1736802173934,2.7487,181.97,181.95,7.56]
[1736802174230,34.05539981,182.04,181.95,7.56]
[1736802174438,2.7486,181.98,181.95,7.56]
[1736802174626,34.05539981,182.04,181.95,7.56]
[1736802175637,2.748,182.02,181.95,7.56]
[1736802175837,34.05539981,182.04,181.95,7.56]
[1736802176033,34.05539981,182.04,181.93,7.5]
[1736802176238,2.7481,182.01,181.93,7.5]
[1736802176429,34.05539981,182.04,181.93,7.5]
[1736802176829,2.7487,181.98,181.93,10.2493]
[1736802177034,34.05539981,182.04,181.93,10.2493]
[1736802177440,2.7488,181.97,181.93,7.5]
[1736802177939,2.7483,182.0,181.96,2.7488]
[1736802178137,2.7483,182.0,181.93,7.5]
[1736802178138,34.05539981,182.04,181.93,7.5]
[1736802178438,2.7484,181.99,181.94,2.749]
[1736802178637,3.2374,182.05,181.93,7.5]
[1736802178835,3.2374,182.05,181.93,41.55539981]
[1736802179140,34.05539981,182.1,181.94,1.6924]
[1736802179342,34.05539981,182.1,181.96,34.05539981]
[1736802179543,34.05539981,182.13,181.97,97.5855]
[1736802179736,34.05539981,182.13,181.99,34.05539981]
[1736802180138,34.05539981,182.1,181.97,94.34]
[1736802180438,1.6319,182.09,181.97,94.34]
[1736802180642,2.7481,182.01,181.97,97.0887]
[1736802180842,34.05539981,182.07,181.97,94.34]
[1736802181241,2.7478,182.04,182.0,2.7482]
[1736802181440,34.05539981,182.13,182.01,7.44]
[1736802181643,2.7473,182.06,182.01,10.1879]
[1736802182043,34.05539981,182.13,182.01,7.44]
[1736802183048,34.05539981,182.1,182.01,7.44]
[1736802183347,34.05539981,182.13,182.01,7.44]
[1736802184343,2.7476,182.05,182.01,10.188]
[1736802184642,34.05539981,182.13,182.01,7.44]
[1736802185042,34.05539981,182.1,182.01,7.44]
[1736802185451,3.2206,182.14,182.01,7.44]
[1736802185650,37.27599981,182.14,182.01,7.44]
[1736802186344,34.05539981,182.11,182.01,7.44]
[1736802186850,3.2206,182.14,182.01,7.44]
[1736802187447,2.747,182.09,182.01,7.44]
[1736802187742,3.2206,182.14,182.01,7.44]
[1736802188145,3.2206,182.14,182.0,1.7001]
[1736802188352,20.85858087,182.09,181.99,7.38]
[1736802188754,20.85858087,182.06,181.97,101.72]
[1736802189050,1.6237,182.05,181.97,94.34]
[1736802189254,3.2222,182.05,181.97,94.34]
[1736802189554,20.85858087,182.03,181.93,10.1292]
[1736802189949,20.85858087,182.03,181.93,7.38]
[1736802190250,20.85858087,182.0,181.91,7.38]
[1736802190550,20.85858087,182.0,181.9,7.38]
[1736802190754,20.85858087,182.0,181.89,7.36]
[1736802191053,20.85858087,182.03,181.89,7.36]
[1736802191245,1.7118,182.04,181.91,20.85858087]
[1736802191450,2.7482,182.01,181.96,2.7487]
[1736802191755,1.7118,182.04,181.97,7.48]
[1736802191954,2.7472,182.07,182.02,2.7478]
[1736802192145,1.6982,182.11,181.97,41.40612028]
[1736802192352,33.92612028,182.16,182.0,33.92612028]
[1736802192550,35.62432028,182.16,182.0,33.92612028]
[1736802192748,35.62432028,182.16,182.05,2.7473]
[1736802192955,35.62432028,182.16,182.05,10.2273]
[1736802193149,2.7463,182.13,182.05,10.2273]
[1736802193347,35.62432028,182.16,182.05,7.48]
[1736802193556,35.62432028,182.16,182.06,2.7473]
[1736802193751,2.7469,182.1,182.05,7.48]
[1736802193954,35.62432028,182.16,182.05,7.48]
[1736802194154,2.7471,182.08,182.05,7.48]
[1736802194346,35.62432028,182.16,182.05,7.48]
[1736802194546,33.92612028,182.13,182.05,7.48]
[1736802194759,2.7481,182.02,181.99,7.48]
[1736802195149,33.92612028,182.1,181.99,7.48]
[1736802195354,33.92612028,182.07,181.99,7.48]
[1736802195555,4.8609,182.06,181.99,7.48]
[1736802195748,2.7483,182.0,181.99,7.48]
[1736802196161,33.92612028,182.04,181.96,94.3]
[1736802196460,4.8609,182.06,181.96,94.3]
[1736802197858,2.7484,182.0,181.96,94.3]
[1736802198664,33.92612028,182.04,181.88,35.48562028]
[1736802198859,4.8609,182.06,181.89,7.44]
[1736802198860,33.92612028,182.01,181.89,7.44]
[1736802199161,4.8609,182.06,181.91,33.92612028]
[1736802199558,33.92612028,182.04,181.91,33.92612028]
[1736802199753,33.92612028,182.04,181.94,2.7491]
[1736802199960,33.92612028,182.04,181.89,7.44]
[1736802200264,33.92612028,182.04,181.93,2.7492]
[1736802200458,33.92612028,182.04,181.93,7.42]
[1736802201158,33.92612028,182.01,181.9,7.4]
[1736802201761,33.92612028,182.01,181.91,2.7495]
[1736802202364,33.92612028,182.01,181.9,10.1498]
[1736802202365,2.7493,181.94,181.9,10.1498]
[1736802202759,33.92612028,182.04,181.9,7.4]
[1736802202956,4.8609,182.06,181.91,33.92612028]
[1736802203162,4.8609,182.06,181.94,33.92612028]
[1736802204659,2.7479,182.03,181.98,2.7485]
[1736802204865,4.8609,182.06,181.98,2.7485]
[1736802205164,4.8609,182.06,181.98,10.1085]
[1736802206071,4.8609,182.06,181.98,7.36]
[1736802206271,2.7479,182.03,181.94,7.36]
[1736802206478,4.8609,182.06,181.94,7.36]
[1736802206672,33.92612028,182.04,181.94,7.36]
[1736802206979,2.749,181.95,181.94,7.36]
[1736802207372,33.92612028,182.01,181.92,94.3]
[1736802207573,2.7495,181.92,181.87,7.34]
[1736802207771,33.92612028,182.01,181.88,2.7501]
[1736802207966,33.92612028,181.98,181.85,1.5798]
[1736802208175,2.7501,181.88,181.84,7.34]
[1736802208373,33.92612028,181.95,181.81,154.26135789]
[1736802208575,2.75,181.89,181.81,94.32]
[1736802208778,1.6142,181.88,181.81,94.32]
[1736802209383,2.751,181.83,181.81,94.32]
[1736802209573,1.6142,181.88,181.81,94.32]
[1736802209769,1.6306,181.87,181.81,94.32]
[1736802210477,2.751,181.82,181.81,94.32]
[1736802210667,1.6306,181.87,181.74,33.92612028]
[1736802210868,1.6306,181.87,181.75,7.32]
[1736802211074,2.7517,181.78,181.72,10.0524]
[1736802211275,33.92612028,181.83,181.72,10.0524]
[1736802211483,1.6196,181.82,181.72,10.0524]
[1736802211775,1.6196,181.82,181.74,2.7522]
[1736802211969,1.6196,181.82,181.72,7.3]
[1736802212478,1.6196,181.82,181.73,2.7523]
[1736802212978,2.7514,181.79,181.72,10.0523]
[1736802213177,33.92612028,181.86,181.72,7.3]
[1736802213379,3.2502,181.87,181.72,7.3]
[1736802213574,3.2502,181.87,181.73,1.6085]
[1736802213779,2.751,181.83,181.74,33.92612028]
[1736802213982,3.2502,181.87,181.74,33.92612028]
[1736802214170,8.44,181.83,181.74,33.92612028]
[1736802214974,8.44,181.83,181.76,2.7518]
[1736802215371,8.44,181.83,181.73,4.7284]
[1736802215576,2.7518,181.77,181.72,7.3]
[1736802215876,8.44,181.83,181.72,7.3]
[1736802216177,8.44,181.83,181.72,7.26]
[1736802216178,42.36612028,181.83,181.72,7.26]
[1736802216579,2.7519,181.77,181.71,2.7525]
[1736802216778,42.36612028,181.83,181.7,101.6]
[1736802216971,42.36612028,181.83,181.7,94.34]
[1736802217277,42.36612028,181.83,181.71,7.26]
[1736802217475,42.36612028,181.83,181.7,94.34]
[1736802217684,33.92612028,181.8,181.7,94.34]
[1736802217882,1.5454,181.79,181.7,94.34]
[1736802218387,33.92612028,181.77,181.7,94.34]
[1736802218587,1.6846,181.76,181.7,94.34]
[1736802218881,1.6846,181.76,181.66,7.26]
[1736802219283,33.92612028,181.74,181.61,59.99705455]
[1736802219581,33.92612028,181.74,181.62,7.26]
[1736802220574,33.92612028,181.71,181.62,7.26]
[1736802220884,33.92612028,181.71,181.59,94.4]
[1736802221179,1.5672,181.7,181.59,94.4]
[1736802221380,2.7532,181.68,181.63,2.7538]
[1736802222074,2.7534,181.67,181.62,2.754]
[1736802222279,1.5672,181.7,181.59,94.4]
[1736802222581,2.754,181.62,181.59,94.4]
[1736802222777,33.92612028,181.68,181.48,94.44]
[1736802222985,33.92612028,181.65,181.5,33.92612028]
[1736802223285,33.92612028,181.65,181.52,2.7554]
[1736802223286,1.6195,181.64,181.52,2.7554]
[1736802223488,1.6195,181.64,181.51,7.24]
[1736802223983,2.7545,181.59,181.55,2.7551]
[1736802224182,1.6195,181.64,181.51,7.24]
[1736802224384,33.92612028,181.62,181.51,7.24]
[1736802224585,1.6471,181.61,181.51,7.24]
[1736802224783,1.6471,181.61,181.49,7.24]
[1736802224983,2.7554,181.53,181.48,97.1961]
[1736802225177,33.92612028,181.59,181.48,94.44]
[1736802225381,33.92612028,181.56,181.43,7.22]
[1736802225682,1.6727,181.58,181.41,33.92612028]
[1736802225890,1.6727,181.58,181.44,33.92612028]
[1736802226189,1.6727,181.58,181.5,2.7557]
[1736802226582,1.6471,181.61,181.5,2.7557]
[1736802226583,1.6471,181.61,181.5,7.22]
[1736802227181,2.7546,181.59,181.53,2.7554]
[1736802227383,1.6471,181.61,181.53,2.7554]
[1736802228185,2.7547,181.58,181.53,2.7554]
[1736802228683,1.6471,181.61,181.5,7.22]
[1736802228884,2.7543,181.6,181.55,2.7549]
[1736802229086,1.6195,181.64,181.5,41.14612028]
[1736802229281,1.6195,181.64,181.5,33.92612028]
[1736802229488,33.92612028,181.62,181.5,7.2]
[1736802229687,1.6769,181.61,181.48,4.959]
[1736802229889,1.6769,181.61,181.48,12.159]
[1736802230095,1.6769,181.61,181.48,4.959]
[1736802230291,33.92612028,181.59,181.47,9.9562]
[1736802230488,33.92612028,181.59,181.47,7.2]
[1736802231183,33.92612028,181.59,181.44,33.92612028]
[1736802231384,33.92612028,181.59,181.38,4.8233]
[1736802231385,33.92612028,181.59,181.45,9.9364]
[1736802231582,33.92612028,181.59,181.45,7.18]
[1736802231887,2.7559,181.5,181.46,2.7564]
[1736802232391,33.92612028,181.56,181.46,2.7564]
[1736802232590,33.92612028,181.56,181.41,33.92612028]
[1736802232787,33.92612028,181.56,181.42,7.16]
[1736802232989,33.92612028,181.59,181.44,33.92612028]
[1736802233184,2.7552,181.55,181.44,33.92612028]
[1736802233392,22.6595312,181.61,181.46,20.9826312]
[1736802233591,20.9826312,181.67,181.49,20.9826312]
[1736802233793,20.9826312,181.67,181.52,20.9826312]
[1736802234192,2.7549,181.56,181.52,2.7554]
[1736802234493,22.6021312,181.64,181.49,7.14]
[1736802234797,20.9826312,181.61,181.49,7.14]
[1736802235099,20.9826312,181.61,181.47,4.7184]
[1736802235286,34.11939341,181.55,181.4,34.11939341]
[1736802235486,2.7558,181.5,181.45,2.7565]
[1736802235696,1.7166,181.54,181.41,7.14]
[1736802236094,2.7552,181.54,181.5,2.7558]
[1736802236293,34.11939341,181.61,181.46,34.11939341]
[1736802236494,34.11939341,181.61,181.49,7.14]
[1736802236694,34.11939341,181.64,181.49,41.25939341]
[1736802237701,1.7166,181.65,181.52,34.11939341]
[1736802238498,1.5947,181.68,181.55,34.11939341]
[1736802238691,1.5947,181.68,181.56,4.7774]
[1736802238895,1.5947,181.68,181.57,7.12]
[1736802239592,1.5947,181.68,181.56,1.5573]
[1736802239897,34.11939341,181.67,181.54,7.12]
[1736802240195,1.5947,181.68,181.54,7.12]
[1736802240397,34.11939341,181.64,181.52,94.54]
[1736802240594,1.6068,181.63,181.52,101.66]
[1736802241493,34.11939341,181.58,181.47,191.0]
[1736802241699,2.756,181.5,181.46,9.8564]
[1736802242096,1.6487,181.57,181.42,35.80329341]
[1736802242296,1.6487,181.57,181.46,2.7564]
[1736802242297,2.7554,181.53,181.46,2.7564]
[1736802242501,34.11939341,181.55,181.42,8.7839]
[1736802242706,1.6197,181.54,181.42,8.7839]
[1736802242896,2.7558,181.51,181.42,1.6839]
[1736802243098,3.2711,181.54,181.42,1.6839]
[1736802243291,3.2711,181.54,181.41,97.6821]
[1736802243497,34.11939341,181.52,181.41,94.52]
[1736802244000,34.11939341,181.49,181.32,34.11939341]
[1736802244197,34.11939341,181.45,181.32,7.08]
[1736802244393,34.11939341,181.45,181.29,128.65939341]
[1736802244598,34.11939341,181.45,181.33,2.7584]
[1736802245100,34.11939341,181.45,181.3,7.08]
[1736802245301,1.6866,181.44,181.3,7.08]
[1736802245511,1.6866,181.44,181.32,34.11939341]
[1736802246099,1.6866,181.44,181.3,7.08]
[1736802246404,34.11939341,181.42,181.29,101.62]
[1736802246806,34.11939341,181.42,181.29,94.54]
[1736802247005,34.11939341,181.39,181.29,94.54]
[1736802247205,34.11939341,181.36,181.25,7.08]
[1736802247398,34.11939341,181.36,181.2,38.94859341]
[1736802247598,2.7589,181.31,181.25,2.7596]
[1736802247807,34.11939341,181.36,181.21,7.06]
[1736802248005,34.11939341,181.33,181.2,4.8292]
[1736802248207,2.759,181.3,181.22,2.7599]
[1736802248408,1.7162,181.35,181.2,46.02859341]
[1736802248605,34.11939341,181.33,181.2,3.2663]
[1736802248808,2.7593,181.27,181.21,2.7601]
[1736802249010,34.11939341,181.3,181.16,101.64]
[1736802249309,34.11939341,181.3,181.18,2.7605]
[1736802249505,34.11939341,181.3,181.16,101.64]
[1736802250005,34.11939341,181.3,181.16,104.4009]
[1736802250206,34.11939341,181.27,181.16,94.56]
[1736802250402,34.11939341,181.24,181.16,94.56]